fUST/lending_fUST_20240227
["ID","MTS","AMOUNT","RATE_DAILY","PERIOD"]
[315377902,1708998639359,-500.0,0.00019178,2]
[315377904,1708998639368,-500.0,0.00019178,2]
[315377906,1708998639377,-2347.76,0.00019178,2]
[315377908,1708998639386,-500.0,0.00019178,2]
[315377909,1708998639396,-167.871908,0.00019178,2]
[315377911,1708998639404,-158.618126,0.00019178,2]
[315377913,1708998639414,-166.666666,0.00019178,2]
[315377914,1708998639422,-303.25938261,0.00019352,2]
[315377916,1708998639431,-1808.29,0.00019451,2]
[315377918,1708998639440,-500.0,0.00019452,2]
[315377919,1708998639449,-500.0,0.00019452,2]
[315377921,1708998639459,-500.0,0.00019452,2]
[315377923,1708998639468,-185.47135293,0.00019452,2]
[315377925,1708998639477,-757.9,0.00019452,2]
[315377927,1708998639486,-1253.19,0.00019452,2]
[315377929,1708998639496,-500.0,0.00019452,2]
[315377930,1708998639505,-331.17941528,0.00019452,2]
[315377932,1708998639514,-195.30844926,0.00019452,2]
[315377934,1708998639523,-2561.57,0.00019452,2]
[315377936,1708998639532,-500.0,0.00019452,2]
[315377937,1708998639541,-500.0,0.00019452,2]
[315377939,1708998639550,-308.55464596,0.00019452,2]
[315377941,1708998639560,-309.25297592,0.00019452,2]
[315377943,1708998639571,-580.25,0.00019452,2]
[315377945,1708998639581,-411.54897742,0.00019452,2]
[315377946,1708998639590,-500.0,0.00019452,2]
[315377948,1708998639599,-500.0,0.00019452,2]
[315377950,1708998639608,-643.74,0.00019452,2]
[315377952,1708998639617,-500.0,0.00019452,2]
[315377954,1708998639626,-287.83353781,0.00019452,2]
[315377955,1708998639635,-500.0,0.00019452,2]
[315377957,1708998639645,-311.25723657,0.00019452,2]
[315377959,1708998639654,-615.27150898,0.00019452,2]
[315377961,1708998639663,-500.0,0.00019452,2]
[315377963,1708998639672,-2597.66,0.00019452,2]
[315377965,1708998639682,-1050.12,0.00019452,2]
[315377966,1708998639691,-500.0,0.00019452,2]
[315377968,1708998639704,-1645.2,0.00019452,2]
[315377970,1708998639713,-500.0,0.00019452,2]
[315377972,1708998639724,-500.0,0.00019452,2]
[315377974,1708998639733,-502.13809935,0.00019452,2]
[315377976,1708998639742,-161.19598813,0.00019452,2]
[315377977,1708998639752,-500.0,0.00019452,2]
[315377979,1708998639761,-504.59579865,0.00019452,2]
[315377981,1708998639770,-1088.67,0.00019452,2]
[315377983,1708998639779,-500.0,0.00019452,2]
[315377985,1708998639788,-500.0,0.00019452,2]
[315377987,1708998639800,-500.0,0.00019452,2]
[315377988,1708998639808,-500.0,0.00019452,2]
[315377990,1708998639819,-500.0,0.00019452,2]
[315377992,1708998639828,-1667.41,0.00019452,2]
[315378006,1708998639941,-3252.09,0.00019452,2]
[315378007,1708998639950,-1885.59,0.00019452,2]
[315378009,1708998639960,-500.0,0.00019452,2]
[315378011,1708998639970,-326.924848,0.00019452,2]
[315378013,1708998639979,-1127.52,0.00019452,2]
[315378015,1708998639989,-500.0,0.00019452,2]
[315378017,1708998640000,-500.0,0.00019452,2]
[315378018,1708998640010,-523.26,0.00019452,2]
[315378020,1708998640019,-500.0,0.00019452,2]
[315378022,1708998640029,-500.0,0.00019452,2]
[315378024,1708998640038,-1631.72,0.00019452,2]
[315378027,1708998640047,-500.0,0.00019452,2]
[315378029,1708998640056,-503.52666675,0.00019452,2]
[315378030,1708998640067,-500.0,0.00019452,2]
[315378032,1708998640076,-9646.5,0.00019452,2]
[315378034,1708998640085,-500.0,0.00019452,2]
[315378036,1708998640094,-1454.84,0.00019452,2]
[315378037,1708998640103,-3112.11,0.00019452,2]
[315378039,1708998640111,-15146.62,0.00019452,2]
[315378041,1708998640120,-831.12,0.00019452,2]
[315378043,1708998640129,-500.0,0.00019452,2]
[315378045,1708998640139,-502.3731827,0.00019452,2]
[315378047,1708998640148,-500.0,0.00019452,2]
[315378048,1708998640157,-502.37139835,0.00019452,2]
[315378050,1708998640166,-500.0,0.00019452,2]
[315378052,1708998640175,-317.207108,0.00019452,2]
[315378054,1708998640184,-525.13,0.00019452,2]
[315378056,1708998640193,-500.0,0.00019452,2]
[315378057,1708998640203,-500.0,0.00019452,2]
[315378059,1708998640212,-1442.8,0.00019452,2]
[315378061,1708998640221,-500.0,0.00019452,2]
[315378063,1708998640230,-500.0,0.00019452,2]
[315378065,1708998640240,-941.96,0.00019452,2]
[315378066,1708998640249,-500.0,0.00019452,2]
[315378068,1708998640258,-1885.5,0.00019452,2]
[315378070,1708998640267,-1180.25,0.00019452,2]
[315378072,1708998640279,-503.19982376,0.00019452,2]
[315378074,1708998640288,-6407.73,0.00019452,2]
[315378076,1708998640297,-500.0,0.00019452,2]
[315378077,1708998640305,-500.0,0.00019452,2]
[315378079,1708998640316,-1014.53,0.00019452,2]
[315378081,1708998640325,-500.0,0.00019452,2]
[315378083,1708998640334,-167.66596435,0.00019452,2]
[315378085,1708998640343,-3081.53,0.00019452,2]
[315378087,1708998640352,-500.0,0.00019452,2]
[315378088,1708998640361,-16410.31,0.00019452,2]
[315378090,1708998640370,-500.0,0.00019452,2]
[315378092,1708998640378,-599.4018927,0.00019452,2]
[315378094,1708998640387,-500.0,0.00019452,2]
[315378096,1708998640396,-502.26498028,0.00019452,2]
[315378097,1708998640405,-577.52,0.00019452,2]
[315378099,1708998640414,-500.0,0.00019452,2]
[315378101,1708998640423,-500.0,0.00019452,2]
[315378103,1708998640432,-500.0,0.00019452,2]
[315378105,1708998640440,-1573.22,0.00019452,2]
[315378106,1708998640449,-584.14,0.00019452,2]
[315378108,1708998640458,-832.04,0.00019452,2]
[315378110,1708998640467,-2536.82,0.00019452,2]
[315378112,1708998640476,-1904.28,0.00019452,2]
[315378114,1708998640485,-503.18608457,0.00019452,2]
[315378115,1708998640493,-500.0,0.00019452,2]
[315378117,1708998640503,-500.0,0.00019452,2]
[315378119,1708998640512,-748.79,0.00019452,2]
[315378121,1708998640522,-396.13099514,0.00019452,2]
[315378123,1708998640532,-581.55260075,0.00019452,2]
[315378125,1708998640541,-2347.76,0.00019452,2]
[315378126,1708998640550,-500.0,0.00019452,2]
[315378128,1708998640560,-153.0,0.000195,2]
[315378130,1708998640574,-306.0,0.000195,2]
[315378132,1708998640583,-153.0,0.000195,2]
[315378134,1708998640593,-153.1554265,0.000195,2]
[315378136,1708998640602,-166.666666,0.00019627,2]
[315378137,1708998640612,-303.25938259,0.00019675,2]
[315378139,1708998640621,-346.7,0.000197,2]
[315378141,1708998640631,-1808.29,0.00019725,2]
[315378143,1708998640641,-155.11478494,0.00019726,2]
[315378145,1708998640651,-500.0,0.00019726,2]
[315378147,1708998640659,-500.0,0.00019726,2]
[315378148,1708998640669,-500.0,0.00019726,2]
[315378150,1708998640678,-757.9,0.00019726,2]
[315378152,1708998640688,-1253.19,0.00019726,2]
[315378154,1708998640698,-500.0,0.00019726,2]
[315378155,1708998640708,-2561.57,0.00019726,2]
[315378157,1708998640719,-500.0,0.00019726,2]
[315378159,1708998640732,-502.97161102,0.00019726,2]
[315378161,1708998640742,-580.25,0.00019726,2]
[315378163,1708998640751,-500.0,0.00019726,2]
[315378164,1708998640760,-500.0,0.00019726,2]
[315378166,1708998640769,-643.74,0.00019726,2]
[315378168,1708998640779,-522.98876347,0.00019726,2]
[315378170,1708998640790,-500.0,0.00019726,2]
[315378172,1708998640801,-500.0,0.00019726,2]
[315378174,1708998640811,-2597.66,0.00019726,2]
[315378175,1708998640824,-1050.12,0.00019726,2]
[315378177,1708998640833,-500.0,0.00019726,2]
[315378179,1708998640842,-1645.2,0.00019726,2]
[315378181,1708998640851,-500.0,0.00019726,2]
[315378183,1708998640860,-500.0,0.00019726,2]
[315378184,1708998640869,-500.0,0.00019726,2]
[315378186,1708998640879,-1088.67,0.00019726,2]
[315378188,1708998640889,-500.0,0.00019726,2]
[315378190,1708998640899,-502.56998248,0.00019726,2]
[315378192,1708998640908,-500.0,0.00019726,2]
[315378193,1708998640917,-232.13398342,0.00019726,2]
[315378195,1708998640926,-500.0,0.00019726,2]
[315378197,1708998640935,-1667.41,0.00019726,2]
[315378199,1708998640944,-3252.09,0.00019726,2]
[315378201,1708998640954,-1885.59,0.00019726,2]
[315378202,1708998640963,-500.0,0.00019726,2]
[315378204,1708998640972,-1127.52,0.00019726,2]
[315378206,1708998640981,-500.0,0.00019726,2]
[315378208,1708998640990,-503.35262043,0.00019726,2]
[315378210,1708998640999,-523.26,0.00019726,2]
[315378211,1708998641008,-502.73428054,0.00019726,2]
[315378213,1708998641017,-501.72825757,0.00019726,2]
[315378215,1708998641026,-1631.72,0.00019726,2]
[315378217,1708998641035,-500.0,0.00019726,2]
[315378219,1708998641044,-551.28665408,0.00019726,2]
[315378220,1708998641052,-9646.5,0.00019726,2]
[315378222,1708998641062,-500.0,0.00019726,2]
[315378224,1708998641073,-1454.84,0.00019726,2]
[315378226,1708998641082,-3112.11,0.00019726,2]
[315378228,1708998641091,-15146.62,0.00019726,2]
[315378230,1708998641104,-831.12,0.00019726,2]
[315378232,1708998641113,-500.0,0.00019726,2]
[315378233,1708998641122,-500.0,0.00019726,2]
[315378235,1708998641131,-500.0,0.00019726,2]
[315378237,1708998641140,-525.13,0.00019726,2]
[315378239,1708998641149,-500.0,0.00019726,2]
[315378241,1708998641157,-500.0,0.00019726,2]
[315378242,1708998641167,-1442.8,0.00019726,2]
[315378244,1708998641176,-503.62709028,0.00019726,2]
[315378246,1708998641185,-500.0,0.00019726,2]
[315378248,1708998641194,-941.96,0.00019726,2]
[315378249,1708998641203,-502.10886591,0.00019726,2]
[315378250,1708998641212,-1885.5,0.00019726,2]
[315378251,1708998641221,-1180.25,0.00019726,2]
[315378252,1708998641230,-6407.73,0.00019726,2]
[315378253,1708998641240,-500.0,0.00019726,2]
[315378254,1708998641249,-500.0,0.00019726,2]
[315378255,1708998641259,-1014.53,0.00019726,2]
[315378256,1708998641268,-500.0,0.00019726,2]
[315378257,1708998641278,-3081.53,0.00019726,2]
[315378258,1708998641287,-500.0,0.00019726,2]
[315378259,1708998641296,-16410.31,0.00019726,2]
[315378260,1708998641305,-530.10517207,0.00019726,2]
[315378261,1708998641316,-500.0,0.00019726,2]
[315378262,1708998641325,-577.52,0.00019726,2]
[315378263,1708998641335,-218.05438362,0.00019726,2]
[315378264,1708998641344,-500.0,0.00019726,2]
[315378265,1708998641352,-172.94345156,0.00019726,2]
[315378266,1708998641361,-1573.22,0.00019726,2]
[315378267,1708998641371,-584.14,0.00019726,2]
[315378268,1708998641380,-832.04,0.00019726,2]
[315378269,1708998641390,-2536.82,0.00019726,2]
[315378270,1708998641399,-1904.28,0.00019726,2]
[315378271,1708998641409,-500.0,0.00019726,2]
[315378272,1708998641418,-502.21773723,0.00019726,2]
[315378273,1708998641427,-748.79,0.00019726,2]
[315378274,1708998641437,-2347.76,0.00019726,2]
[315378275,1708998641446,-500.0,0.00019726,2]
[315378276,1708998641455,-200.0,0.000198,2]
[315378277,1708998641464,-153.0,0.00019918,2]
[315378278,1708998641473,-153.0,0.00019918,2]
[315378280,1708998641482,-303.25938259,0.00019999,2]
[315378281,1708998641491,-1808.29,0.00019999,2]
[315378282,1708998641500,-500.0,0.0002,2]
[315378284,1708998641509,-500.0,0.0002,2]
[315378285,1708998641519,-505.22836181,0.0002,2]
[315378287,1708998641527,-757.9,0.0002,2]
[315378289,1708998641537,-1253.19,0.0002,2]
[315378291,1708998641546,-256.63,0.0002,7]
[315378293,1708998641557,-500.0,0.0002,2]
[315378295,1708998641567,-2561.57,0.0002,2]
[315378297,1708998641576,-500.0,0.0002,2]
[315378299,1708998641585,-580.25,0.0002,2]
[315378301,1708998641596,-500.0,0.0002,2]
[315378303,1708998641605,-623.01471876,0.0002,2]
[315378305,1708998641614,-643.74,0.0002,2]
[315378307,1708998641623,-500.0,0.0002,2]
[315378309,1708998641633,-500.0,0.0002,2]
[315378311,1708998641643,-2597.66,0.0002,2]
[315378313,1708998641652,-1050.12,0.0002,2]
[315378315,1708998641661,-500.0,0.0002,2]
[315378318,1708998641675,-1645.2,0.0002,2]
[315378320,1708998641685,-500.0,0.0002,2]
[315378322,1708998641694,-227.28863408,0.0002,2]
[315378324,1708998641703,-500.0,0.0002,2]
[315378326,1708998641712,-1088.67,0.0002,2]
[315378328,1708998641723,-500.0,0.0002,2]
[315378330,1708998641734,-500.0,0.0002,2]
[315378332,1708998641743,-500.0,0.0002,2]
[315378334,1708998641752,-1667.41,0.0002,2]
[315378336,1708998641762,-3252.09,0.0002,2]
[315378338,1708998641772,-1885.59,0.0002,2]
[315378340,1708998641781,-500.0,0.0002,2]
[315378342,1708998641792,-1127.52,0.0002,2]
[315378344,1708998641802,-500.0,0.0002,2]
[315378346,1708998641813,-523.26,0.0002,2]
[315378348,1708998641825,-1631.72,0.0002,2]
[315378350,1708998641834,-2089.41222772,0.0002,2]
[315378352,1708998641844,-501.35547942,0.0002,2]
[315378354,1708998641854,-9646.5,0.0002,2]
[315378356,1708998641863,-503.46406997,0.0002,2]
[315378358,1708998641872,-1454.84,0.0002,2]
[315378360,1708998641881,-3112.11,0.0002,2]
[315378362,1708998641890,-3092.42095614,0.0002,3]
[315378364,1708998641899,-15146.62,0.0002,2]
[315378366,1708998641908,-831.12,0.0002,2]
[315378368,1708998641917,-507.6639879,0.0002,2]
[315378370,1708998641926,-501.87399356,0.0002,2]
[315378372,1708998641936,-500.0,0.0002,2]
[315378374,1708998641945,-500.0,0.0002,2]
[315378376,1708998641954,-525.13,0.0002,2]
[315378378,1708998641964,-500.0,0.0002,2]
[315378380,1708998641973,-1442.8,0.0002,2]
[315378381,1708998641983,-500.0,0.0002,2]
[315378383,1708998641992,-941.96,0.0002,2]
[315378385,1708998642001,-151.62887317,0.0002,2]
[315378387,1708998642010,-1885.5,0.0002,2]
[315378388,1708998642019,-1180.25,0.0002,2]
[315378390,1708998642028,-6407.73,0.0002,2]
[315378392,1708998642037,-500.0,0.0002,2]
[315378394,1708998642046,-500.0,0.0002,2]
[315378396,1708998642055,-1014.53,0.0002,2]
[315378398,1708998642064,-500.0,0.0002,2]
[315378400,1708998642074,-3081.53,0.0002,2]
[315378402,1708998642083,-500.0,0.0002,2]
[315378404,1708998642094,-16410.31,0.0002,2]
[315378406,1708998642103,-500.0,0.0002,2]
[315378408,1708998642113,-577.52,0.0002,2]
[315378410,1708998642123,-500.0,0.0002,2]
[315378412,1708998642132,-1573.22,0.0002,2]
[315378414,1708998642140,-584.14,0.0002,2]
[315378416,1708998642149,-832.04,0.0002,2]
[315378418,1708998642158,-2536.82,0.0002,2]
[315378420,1708998642167,-1904.28,0.0002,2]
[315378422,1708998642176,-611.56698539,0.0002,2]
[315378424,1708998642185,-748.79,0.0002,2]
[315378426,1708998642194,-2347.76,0.0002,2]
[315378428,1708998642203,-500.0,0.0002,2]
[315378430,1708998642213,-884.86888783,0.00020054,2]
[315378432,1708998642222,-306.0,0.00020055,2]
[315378434,1708998642231,-166.666666,0.00020076,2]
[315378436,1708998642240,-175.5,0.000201,2]
[315378438,1708998642250,-153.0,0.00020192,2]
[315378440,1708998642259,-308.2480849,0.00020192,2]
[315378442,1708998642269,-153.0,0.00020255,2]
[315378444,1708998642278,-153.0,0.00020255,2]
[315378445,1708998642287,-455.1304468,0.00020255,2]
[315378447,1708998642296,-153.0,0.00020255,2]
[315378449,1708998642305,-153.0,0.00020255,2]
[315378451,1708998642314,-153.0,0.00020255,2]
[315378453,1708998642326,-153.4164874,0.00020255,2]
[315378464,1708998642421,-153.7606601,0.00020255,2]
[315378466,1708998642430,-153.0,0.00020255,2]
[315378468,1708998642440,-153.0,0.00020255,2]
[315378470,1708998642449,-227.9162986,0.00020255,2]
[315378472,1708998642458,-306.0,0.00020255,2]
[315378474,1708998642467,-153.0,0.00020255,2]
[315378476,1708998642477,-153.0,0.00020255,2]
[315378478,1708998642487,-153.0,0.00020255,2]
[315378480,1708998642495,-153.0,0.00020255,2]
[315378482,1708998642504,-153.0,0.00020255,2]
[315378484,1708998642514,-306.553935,0.00020255,2]
[315378486,1708998642523,-306.8074381,0.00020255,2]
[315378487,1708998642533,-153.0,0.00020255,2]
[315378489,1708998642542,-153.0,0.00020255,2]
[315378491,1708998642551,-500.0,0.00020273,2]
[315378493,1708998642561,-500.0,0.00020273,2]
[315378495,1708998642573,-757.9,0.00020273,2]
[315378497,1708998642582,-1253.19,0.00020273,2]
[315378499,1708998642591,-316.02608932,0.00020273,2]
[315378501,1708998642601,-2561.57,0.00020273,2]
[315378503,1708998642610,-500.0,0.00020273,2]
[315378505,1708998642619,-580.25,0.00020273,2]
[315378507,1708998642628,-500.0,0.00020273,2]
[315378509,1708998642638,-1808.29,0.00020273,2]
[315378511,1708998642647,-643.74,0.00020273,2]
[315378513,1708998642657,-500.0,0.00020273,2]
[315378515,1708998642666,-283.49549148,0.00020273,2]
[315378517,1708998642676,-2597.66,0.00020273,2]
[315378519,1708998642686,-1050.12,0.00020273,2]
[315378521,1708998642696,-500.0,0.00020273,2]
[315378523,1708998642707,-1645.2,0.00020273,2]
[315378525,1708998642717,-500.0,0.00020273,2]
[315378527,1708998642726,-500.0,0.00020273,2]
[315378529,1708998642736,-1088.67,0.00020273,2]
[315378531,1708998642747,-500.0,0.00020273,2]
[315378532,1708998642757,-500.0,0.00020273,2]
[315378535,1708998642767,-500.0,0.00020273,2]
[315378536,1708998642777,-1667.41,0.00020273,2]
[315378538,1708998642787,-3252.09,0.00020273,2]
[315378540,1708998642796,-1885.59,0.00020273,2]
[315378542,1708998642806,-251.2299246,0.00020273,2]
[315378544,1708998642815,-1127.52,0.00020273,2]
[315378546,1708998642825,-500.0,0.00020273,2]
[315378548,1708998642835,-523.26,0.00020273,2]
[315378550,1708998642844,-1631.72,0.00020273,2]
[315378552,1708998642852,-9646.5,0.00020273,2]
[315378554,1708998642862,-1454.84,0.00020273,2]
[315378556,1708998642871,-3112.11,0.00020273,2]
[315378558,1708998642879,-15146.62,0.00020273,2]
[315378559,1708998642888,-831.12,0.00020273,2]
[315378561,1708998642897,-500.0,0.00020273,2]
[315378563,1708998642907,-359.83511625,0.00020273,2]
[315378565,1708998642916,-525.13,0.00020273,2]
[315378567,1708998642926,-500.0,0.00020273,2]
[315378569,1708998642935,-1442.8,0.00020273,2]
[315378571,1708998642944,-500.0,0.00020273,2]
[315378573,1708998642954,-941.96,0.00020273,2]
[315378575,1708998642963,-1885.5,0.00020273,2]
[315378577,1708998642972,-1180.25,0.00020273,2]
[315378579,1708998642981,-6407.73,0.00020273,2]
[315378581,1708998642990,-500.0,0.00020273,2]
[315378583,1708998642999,-500.0,0.00020273,2]
[315378585,1708998643008,-1014.53,0.00020273,2]
[315378587,1708998643018,-500.0,0.00020273,2]
[315378588,1708998643027,-3081.53,0.00020273,2]
[315378590,1708998643035,-500.0,0.00020273,2]
[315378592,1708998643045,-16410.31,0.00020273,2]
[315378594,1708998643054,-500.0,0.00020273,2]
[315378596,1708998643063,-577.52,0.00020273,2]
[315378598,1708998643074,-247.16884376,0.00020273,2]
[315378600,1708998643084,-1573.22,0.00020273,2]
[315378602,1708998643094,-584.14,0.00020273,2]
[315378604,1708998643103,-832.04,0.00020273,2]
[315378606,1708998643114,-2536.82,0.00020273,2]
[315378608,1708998643123,-1904.28,0.00020273,2]
[315378610,1708998643132,-748.79,0.00020273,2]
[315378612,1708998643142,-2347.76,0.00020273,2]
[315378614,1708998643151,-500.0,0.00020273,2]
[315378616,1708998643160,-303.25938259,0.00020322,2]
[315378618,1708998643169,-1213.00670702,0.00020328,2]
[315378620,1708998643179,-960.07696231,0.00020421,2]
[315378622,1708998643188,-75402.60407784,0.00020513,2]
[315378623,1708998643197,-166.666666,0.00020524,2]
[315378625,1708998643207,-406.7,0.00020538,3]
[315378627,1708998643216,-500.0,0.00020546,2]
[315378629,1708998643226,-471.6057893,0.00020546,2]
[315378631,1708998643235,-500.0,0.00020546,2]
[315378633,1708998643244,-500.0,0.00020546,2]
[315378635,1708998643253,-427.74287769,0.00020546,2]
[315378637,1708998643262,-500.0,0.00020546,2]
[315378639,1708998643271,-500.0,0.00020546,2]
[315378641,1708998643280,-500.0,0.00020546,2]
[315378643,1708998643289,-500.0,0.00020546,2]
[315378645,1708998643299,-500.0,0.00020546,2]
[315378647,1708998643308,-500.0,0.00020546,2]
[315378649,1708998643319,-278.18104357,0.00020546,2]
[315378651,1708998643328,-500.0,0.00020546,2]
[315378653,1708998643337,-500.0,0.00020546,2]
[315378655,1708998643346,-500.0,0.00020546,2]
[315378657,1708998643356,-378.03943636,0.00020546,2]
[315378658,1708998643365,-208.31057271,0.00020546,2]
[315378660,1708998643374,-500.0,0.00020546,2]
[315378662,1708998643383,-500.0,0.00020546,2]
[315378664,1708998643393,-500.0,0.00020546,2]
[315378666,1708998643403,-500.0,0.00020546,2]
[315378668,1708998643412,-500.0,0.00020546,2]
[315378670,1708998643421,-500.0,0.00020546,2]
[315378672,1708998643430,-500.0,0.00020546,2]
[315378674,1708998643439,-500.0,0.00020546,2]
[315378676,1708998643447,-500.0,0.00020546,2]
[315378678,1708998643456,-500.0,0.00020546,2]
[315378680,1708998643465,-500.0,0.00020546,2]
[315378682,1708998643474,-500.0,0.00020546,2]
[315378684,1708998643484,-500.0,0.00020546,2]
[315378686,1708998643493,-500.0,0.00020546,2]
[315378688,1708998643502,-500.0,0.00020546,2]
[315378690,1708998643511,-500.0,0.00020546,2]
[315378692,1708998643520,-500.0,0.00020546,2]
[315378693,1708998643529,-500.0,0.00020546,2]
[315378695,1708998643538,-500.0,0.00020546,2]
[315378697,1708998643548,-500.0,0.00020546,2]
[315378699,1708998643557,-266.87336665,0.00020546,2]
[315378701,1708998643568,-500.0,0.00020546,2]
[315378703,1708998643577,-500.0,0.00020546,2]
[315378705,1708998643587,-500.0,0.00020546,2]
[315378707,1708998643596,-500.0,0.00020546,2]
[315378709,1708998643605,-500.0,0.00020546,2]
[315378711,1708998643614,-500.0,0.00020546,2]
[315378713,1708998643623,-500.0,0.00020546,2]
[315378715,1708998643632,-500.0,0.00020546,2]
[315378717,1708998643642,-500.0,0.00020546,2]
[315378719,1708998643652,-500.0,0.00020546,2]
[315378721,1708998643661,-500.0,0.00020546,2]
[315378723,1708998643670,-500.0,0.00020546,2]
[315378725,1708998643679,-500.0,0.00020546,2]
[315378726,1708998643689,-500.0,0.00020546,2]
[315378728,1708998643702,-500.0,0.00020546,2]
[315378730,1708998643712,-500.0,0.00020546,2]
[315378732,1708998643721,-500.0,0.00020546,2]
[315378734,1708998643730,-500.0,0.00020546,2]
[315378736,1708998643740,-500.0,0.00020546,2]
[315378738,1708998643750,-500.0,0.00020546,2]
[315378740,1708998643760,-500.0,0.00020546,2]
[315378742,1708998643770,-500.0,0.00020546,2]
[315378744,1708998643782,-500.0,0.00020546,2]
[315378746,1708998643794,-500.0,0.00020546,2]
[315378748,1708998643803,-500.0,0.00020546,2]
[315378750,1708998643813,-500.0,0.00020546,2]
[315378752,1708998643825,-500.0,0.00020546,2]
[315378754,1708998643835,-500.0,0.00020546,2]
[315378756,1708998643848,-500.0,0.00020546,2]
[315378758,1708998643858,-500.0,0.00020546,2]
[315378760,1708998643868,-500.0,0.00020546,2]
[315378762,1708998643877,-500.0,0.00020546,2]
[315378764,1708998643887,-500.0,0.00020546,2]
[315378766,1708998643897,-500.0,0.00020546,2]
[315378768,1708998643906,-500.0,0.00020546,2]
[315378770,1708998643918,-500.0,0.00020546,2]
[315378772,1708998643928,-500.0,0.00020546,2]
[315378774,1708998643939,-500.0,0.00020546,2]
[315378776,1708998643950,-500.0,0.00020546,2]
[315378778,1708998643960,-500.0,0.00020546,2]
[315378780,1708998643972,-500.0,0.00020546,2]
[315378782,1708998643983,-500.0,0.00020546,2]
[315378784,1708998643993,-500.0,0.00020546,2]
[315378786,1708998644003,-500.0,0.00020546,2]
[315378788,1708998644013,-500.0,0.00020546,2]
[315378790,1708998644023,-284.50597774,0.00020546,2]
[315378792,1708998644032,-269.77676413,0.00020546,2]
[315378794,1708998644041,-500.0,0.00020546,2]
[315378796,1708998644051,-500.0,0.00020546,2]
[315378798,1708998644061,-500.0,0.00020546,2]
[315378800,1708998644071,-500.0,0.00020546,2]
[315378801,1708998644080,-500.0,0.00020546,2]
[315378803,1708998644089,-500.0,0.00020546,2]
[315378805,1708998644098,-500.0,0.00020546,2]
[315378807,1708998644107,-500.0,0.00020546,2]
[315378809,1708998644116,-500.0,0.00020546,2]
[315378811,1708998644125,-500.0,0.00020546,2]
[315378813,1708998644135,-300.0,0.00020546,2]
[315378815,1708998644144,-500.0,0.00020546,2]
[315378817,1708998644154,-500.0,0.00020546,2]
[315378819,1708998644163,-500.0,0.00020546,2]
[315378821,1708998644172,-500.0,0.00020546,2]
[315378823,1708998644182,-547.67624046,0.00020547,2]
[315378825,1708998644191,-500.0,0.00020547,2]
[315378827,1708998644200,-757.9,0.00020547,2]
[315378828,1708998644209,-1253.19,0.00020547,2]
[315378830,1708998644219,-2561.57,0.00020547,2]
[315378832,1708998644229,-500.0,0.00020547,2]
[315378834,1708998644238,-580.25,0.00020547,2]
[315378837,1708998644248,-500.0,0.00020547,2]
[315378839,1708998644258,-1808.29,0.00020547,2]
[315378842,1708998644268,-643.74,0.00020547,2]
[315378845,1708998644276,-500.0,0.00020547,2]